bitfinex-derivatives/quotes_ETHF0:USTF0_20240927
["timestamp","ask_amount","ask_price","bid_price","bid_amount"]
[1727464982841,3.39812297,2705.2,2705.1,0.36957]
[1727464983040,1.4638,2705.2,2705.1,0.36957]
[1727464984249,1.83336,2705.2,2705.1,0.36957]
[1727464984447,1.4638,2705.2,2705.1,0.36957]
[1727464984746,1.4638,2705.2,2705.1,3.57737]
[1727464985349,1.79523,2705.5,2705.3,0.36954]
[1727464985544,0.36953,2705.4,2705.3,0.36954]
[1727464985946,1.79523,2705.5,2705.3,0.36954]
[1727464986747,0.36953,2705.4,2705.3,0.36954]
[1727464989345,0.36955,2705.3,2705.2,0.36956]
[1727464989650,0.36954,2705.4,2705.3,0.36955]
[1727464989851,0.36955,2705.3,2705.2,0.36955]
[1727464990746,1.528,2705.6,2705.1,3.2078]
[1727464991052,0.36952,2705.5,2705.4,0.36953]
[1727464993954,0.36956,2705.2,2705.1,3.57736]
[1727464994254,0.36959,2705.0,2704.9,1.4761]
[1727464994449,0.36959,2705.0,2704.9,4.6839]
[1727464994753,0.36959,2705.0,2704.9,5.05349]
[1727464994948,0.36958,2705.1,2705.0,0.36957]
[1727464996352,0.36959,2705.0,2704.9,3.2078]
[1727464996558,0.36959,2705.0,2704.6,4.7478]
[1727464996559,0.36963,2704.7,2704.6,4.7478]
[1727464997053,0.36963,2704.7,2704.6,3.2078]
[1727464997756,0.36963,2704.7,2704.6,3.57744]
[1727464999855,0.36963,2704.8,2704.7,0.36962]
[1727465001150,0.92405,2704.8,2704.3,3.2078]
[1727465001463,3.80418,2704.5,2703.8,2.41647]
[1727465001651,0.36972,2704.1,2704.0,0.36972]
[1727465001852,0.36974,2703.9,2703.8,1.86184]
[1727465002858,0.36974,2703.9,2703.8,0.36974]
[1727465003048,2.88,2704.0,2703.4,5.59829]
[1727465003250,1.5046,2703.8,2703.7,0.36977]
[1727465005053,0.92423,2704.3,2703.7,0.36977]
[1727465005054,2.88,2704.2,2703.7,7.83062]
[1727465005259,2.88,2704.2,2704.1,0.36971]
[1727465006058,1.514,2704.3,2704.2,0.3697]
[1727465006259,1.514,2704.3,2704.1,0.3697]
[1727465006260,0.36971,2704.2,2704.1,0.3697]
[1727465006458,1.88369,2704.3,2704.2,0.3697]
[1727465006852,1.514,2704.3,2704.2,0.3697]
[1727465007058,2.88,2704.5,2704.4,0.36967]
[1727465007657,2.88,2704.5,2704.0,2.42761]
[1727465007658,0.36968,2704.4,2704.3,0.36968]
[1727465008363,0.36967,2704.4,2704.2,0.36969]
[1727465008859,0.36968,2704.3,2704.2,0.36969]
[1727465009565,0.36968,2704.4,2704.3,0.36968]
[1727465011755,0.36969,2704.3,2704.2,0.36969]
[1727465012363,0.36968,2704.4,2704.3,0.36968]
[1727465012665,2.88,2704.5,2704.4,0.36967]
[1727465012666,3.24967,2704.5,2704.4,0.36967]
[1727465012859,6.94727,2704.5,2704.4,0.36967]
[1727465013263,6.94727,2704.5,2704.0,3.2078]
[1727465013569,0.3697,2704.2,2704.1,0.3697]
[1727465014267,0.36969,2704.3,2704.1,0.3697]
[1727465014564,0.36969,2704.3,2704.2,0.3697]
[1727465015262,0.36971,2704.1,2704.0,0.36973]
[1727465015657,1.91771,2704.2,2704.1,0.36971]
[1727465015859,1.548,2704.2,2703.9,3.2078]
[1727465016166,0.36979,2703.6,2703.5,0.36979]
[1727465016360,0.92435,2703.9,2703.6,0.36977]
[1727465016361,0.36977,2703.7,2703.6,0.36977]
[1727465017370,1.90346,2703.8,2703.7,0.36977]
[1727465018567,1.5337,2703.8,2703.7,0.36977]
[1727465020269,3.2078,2704.1,2703.7,3.6984]
[1727465020458,4.428,2704.2,2703.7,3.2078]
[1727465020459,0.36976,2703.8,2703.7,3.2078]
[1727465020665,0.3698,2703.5,2703.4,3.2078]
[1727465021168,0.36985,2703.1,2702.8,0.086]
[1727465021364,2.88,2702.9,2702.8,0.36989]
[1727465022370,1.4612,2703.0,2702.8,0.36989]
[1727465022568,1.4612,2703.0,2702.9,0.36988]
[1727465023069,1.4612,2703.0,2702.9,3.57768]
[1727465023270,1.4612,2703.0,2702.9,3.2078]
[1727465023472,1.4612,2703.0,2702.9,0.36988]
[1727465023878,1.4612,2703.0,2702.8,0.36988]
[1727465024681,1.4612,2703.0,2702.6,4.7891]
[1727465025097,1.4612,2703.0,2702.9,0.36988]
[1727465025472,1.83107,2703.0,2702.8,0.36989]
[1727465025673,1.4612,2703.0,2702.8,0.36989]
[1727465026182,1.4612,2703.0,2702.9,0.36988]
[1727465026475,1.95274,2703.2,2703.0,0.36986]
[1727465026683,1.5829,2703.2,2703.1,0.36985]
[1727465026985,1.4753,2703.4,2702.9,3.2078]
[1727465027176,1.4753,2703.4,2703.3,0.36982]
[1727465027483,1.4753,2703.4,2703.2,0.36983]
[1727465027877,1.84511,2703.4,2703.2,0.36983]
[1727465028367,0.36982,2703.3,2703.1,0.36984]
[1727465028574,1.4753,2703.4,2702.9,3.2078]
[1727465028769,1.4753,2703.4,2703.2,0.36982]
[1727465028975,1.84511,2703.4,2703.2,0.36982]
[1727465029176,1.4753,2703.4,2703.3,0.36982]
[1727465029788,1.84511,2703.4,2703.3,0.36982]
[1727465030179,1.4753,2703.4,2703.3,0.36982]
[1727465030687,1.84511,2703.4,2703.2,3.57763]
[1727465031674,1.4753,2703.4,2703.3,0.36982]
[1727465032281,1.84512,2703.4,2703.2,3.57763]
[1727465032485,1.4753,2703.4,2703.3,0.36982]
[1727465032877,1.84511,2703.4,2703.3,0.36982]
[1727465033385,1.84511,2703.4,2703.2,3.57762]
[1727465033885,1.4753,2703.4,2703.3,0.36982]
[1727465035980,1.84511,2703.4,2703.3,0.36982]
[1727465036173,1.84511,2703.4,2703.2,3.2078]
[1727465036378,1.84511,2703.4,2703.3,0.36982]
[1727465038287,1.4753,2703.4,2703.3,0.36982]
[1727465038690,1.84511,2703.4,2703.3,0.36982]
[1727465039686,1.4753,2703.4,2703.3,0.36982]
[1727465040187,1.84511,2703.4,2703.3,0.36982]
[1727465040393,1.5337,2703.8,2703.7,0.36977]
[1727465040394,1.90346,2703.8,2703.7,0.36977]
[1727465040685,0.36977,2703.7,2703.6,0.36978]
[1727465040892,0.36978,2703.6,2703.5,3.57758]
[1727465041286,0.36978,2703.6,2703.5,0.36978]
[1727465041680,0.36977,2703.7,2703.6,0.36977]
[1727465042280,0.36979,2703.6,2703.5,0.36979]
[1727465042488,6.772,2703.8,2703.4,0.3698]
[1727465042489,0.3698,2703.5,2703.4,0.3698]
[1727465043789,0.36979,2703.6,2703.5,0.36979]
[1727465047291,0.36978,2703.7,2703.6,0.36977]
[1727465047993,1.4339,2703.8,2703.7,0.36977]
[1727465049497,1.80365,2703.8,2703.7,0.36977]
[1727465049799,1.4339,2703.8,2703.7,0.36977]
[1727465049996,1.80365,2703.8,2703.7,0.36977]
[1727465051693,1.4339,2703.8,2703.7,0.36977]
[1727465052699,1.80365,2703.8,2703.7,0.36977]
[1727465053387,0.36977,2703.7,2703.6,3.2078]
[1727465054501,0.36977,2703.7,2703.6,3.57758]
[1727465054997,1.29419,2703.7,2703.6,3.2078]
[1727465055186,1.29419,2703.7,2703.6,3.57758]
[1727465056397,1.29419,2703.7,2703.3,0.92454]
[1727465056600,0.36977,2703.7,2703.6,0.36978]
[1727465058702,1.80367,2703.8,2703.7,0.36977]
[1727465062496,1.80367,2703.8,2703.7,3.57757]
[1727465062697,1.4339,2703.8,2703.7,3.57757]
[1727465063402,1.80365,2703.8,2703.7,3.57757]
[1727465068499,1.4339,2703.8,2703.7,3.57757]
[1727465069199,1.5555,2704.0,2703.9,0.36974]
[1727465070707,1.92523,2704.0,2703.9,0.36974]
[1727465071499,1.5555,2704.0,2703.9,1.29409]
[1727465071806,1.6494,2704.1,2704.0,0.36973]
[1727465072001,1.6494,2704.1,2704.0,3.57753]
[1727465073110,2.9434,2704.1,2704.0,3.2078]
[1727465073908,9.50041297,2704.1,2704.0,3.2078]
[1727465074209,2.21853,2703.8,2703.7,3.2078]
[1727465074405,5.09853,2703.8,2703.7,3.2078]
[1727465075204,4.17414,2703.8,2703.7,3.2078]
[1727465076510,1.29424,2703.6,2703.5,0.95365133]
[1727465076705,0.36981,2703.4,2703.3,0.95365133]
[1727465076908,0.36982,2703.3,2703.2,0.95365133]
[1727465077205,0.36982,2703.3,2703.2,1.32348133]
[1727465077405,0.36982,2703.3,2703.2,2.56809847]
[1727465078413,0.36982,2703.3,2703.2,1.32348133]
[1727465079510,0.36982,2703.3,2703.2,0.95365133]
[1727465079715,0.36982,2703.3,2703.2,1.32348133]
[1727465080511,0.36982,2703.3,2703.2,0.95365133]
[1727465081014,0.36982,2703.3,2703.2,0.36983]
[1727465081719,1.99422,2703.4,2703.3,0.36982]
[1727465082417,1.6244,2703.4,2703.3,1.32347133]
[1727465083510,1.99421,2703.4,2703.3,0.36982]
[1727465083810,1.99421,2703.4,2703.3,1.32347133]
[1727465084014,1.99421,2703.4,2703.3,0.36982]
[1727465087213,1.99421,2703.4,2703.3,1.32347133]
[1727465087623,1.99421,2703.4,2703.3,0.36982]
[1727465087915,1.9032,2703.5,2703.4,0.36981]
[1727465091328,0.36982,2703.4,2703.3,0.36981]
[1727465091522,0.36982,2703.4,2703.3,0.36982]
[1727465092427,3.50187,2703.7,2703.6,0.36978]
[1727465095725,3.1321,2703.7,2703.6,0.36978]
[1727465095925,0.36976,2703.8,2703.7,0.36977]
[1727465096726,0.36976,2703.8,2703.6,0.96153984]
[1727465096727,0.36975,2703.9,2703.8,0.36975]
[1727465097624,4.6463,2704.0,2703.7,0.36976]
[1727465097625,0.36977,2703.8,2703.7,0.36976]
[1727465104930,1.9384641,2704.2,2703.8,0.92438]
[1727465105138,0.36973,2704.1,2704.0,0.36971]
[1727465105927,0.36973,2704.1,2703.9,3.1363]
[1727465105928,0.36973,2704.0,2703.9,3.50603]
[1727465106129,0.36975,2703.9,2703.8,0.36975]
[1727465106324,0.36975,2703.9,2703.6,0.96153984]
[1727465106325,0.36977,2703.8,2703.7,0.36976]
[1727465106835,1.96607,2703.8,2703.7,0.36976]
[1727465107332,1.5963,2703.8,2703.7,0.36976]
[1727465107533,1.96605,2703.8,2703.7,0.36976]
[1727465109633,1.9384641,2704.2,2703.7,3.6984]
[1727465109840,1.87279,2704.3,2704.2,0.3697]
[1727465111042,3.8112541,2704.3,2704.2,0.3697]
[1727465111537,1.87279,2704.3,2704.2,0.3697]
[1727465115639,0.36971,2704.2,2704.1,0.3697]
[1727465116746,1.69971,2704.2,2704.1,0.3697]
[1727465116945,0.36973,2704.1,2704.0,0.36972]
[1727465120244,0.36974,2703.9,2703.8,1.86244]
[1727465120448,0.36974,2703.9,2703.7,0.96153984]
[1727465120449,0.36975,2703.8,2703.7,0.36975]
[1727465120652,1.97255,2703.8,2703.7,0.36975]
[1727465122346,0.36978,2703.6,2703.5,3.57758]
[1727465122656,1.69978,2703.6,2703.5,0.36978]
[1727465123852,0.36981,2703.5,2703.4,0.3698]
[1727465124454,1.69979,2703.6,2703.5,0.36979]
[1727465125054,0.36979,2703.6,2703.5,0.36979]
[1727465127752,0.36981,2703.5,2703.4,0.3698]
[1727465128250,0.36982,2703.4,2703.3,0.36981]
[1727465128654,0.36983,2703.2,2703.1,0.96153984]
[1727465128948,0.36986,2703.1,2703.0,0.36986]
[1727465129147,1.69986,2703.1,2703.0,0.36986]
[1727465129355,0.36989,2702.9,2702.8,0.36988]
[1727465129548,0.36989,2702.8,2702.7,0.36989]
[1727465129751,5.00179,2702.8,2702.7,0.36989]
[1727465130157,0.36993,2702.6,2702.5,0.36993]
[1727465130347,0.36993,2702.5,2702.4,4.53926984]
[1727465130549,1.33,2702.5,2702.4,0.36994]
[1727465130859,0.36996,2702.3,2702.2,0.36997]
[1727465131060,1.33,2702.3,2701.9,0.96153984]
[1727465131249,1.33,2702.3,2701.7,1.33156984]
[1727465131250,0.37002,2701.9,2701.7,1.33156984]
[1727465131447,0.37003,2701.8,2701.6,0.37004]
[1727465131755,2.8462,2701.8,2701.5,1.6088]
[1727465132061,3.21623,2701.8,2701.7,0.37004]
[1727465132247,3.21623,2701.8,2701.6,0.37004]
[1727465132547,1.5162,2701.8,2701.7,0.37004]
[1727465133061,1.88623,2701.8,2701.7,0.37004]
[1727465133254,1.88623,2701.8,2701.6,0.37005]
[1727465133555,0.37008,2701.4,2701.2,0.3701]
[1727465134046,2.89,2701.6,2701.3,0.37009]
[1727465134047,0.37007,2701.5,2701.3,0.37009]
[1727465134252,3.26006,2701.6,2701.4,0.37008]
[1727465134560,0.37009,2701.4,2701.2,0.37011]
[1727465134751,2.89,2701.3,2701.0,3.2078]
[1727465134954,0.37011,2701.2,2701.0,3.57793]
[1727465135258,0.37012,2701.1,2701.0,3.2078]
[1727465136250,1.6393,2701.2,2701.0,3.57793]
[1727465136251,2.00941,2701.2,2701.0,3.57793]
[1727465136452,0.37012,2701.1,2701.0,3.2078]
[1727465136847,1.6393,2701.2,2701.0,3.57793]
[1727465137044,2.00942,2701.2,2701.0,3.57793]
[1727465138060,0.37012,2701.1,2701.0,3.57793]
[1727465138459,2.00942,2701.2,2701.0,3.57793]
[1727465138756,0.37012,2701.1,2701.0,3.2078]
[1727465139255,3.26012,2701.1,2701.0,3.2078]
[1727465139457,3.26012,2701.1,2700.4,0.37021]
[1727465139458,0.92537,2701.0,2700.4,0.37021]
[1727465139661,3.26021,2700.5,2700.3,0.37022]
[1727465140057,0.37022,2700.4,2700.2,0.37024]
[1727465140252,0.37022,2700.4,2699.9,3.1015]
[1727465140761,0.37022,2700.4,2700.2,0.37024]
[1727465141258,0.37024,2700.3,2700.1,0.37025]
[1727465141764,0.37022,2700.4,2700.2,0.37024]
[1727465142663,6.0978,2700.5,2699.9,3.1015]
[1727465142969,1.5308,2700.7,2700.6,0.37019]
[1727465143460,1.90098,2700.7,2700.5,0.37019]
[1727465143959,2.89,2700.6,2700.1,3.2078]
[1727465144161,0.37021,2700.5,2700.3,0.37023]
[1727465144360,0.37021,2700.5,2700.4,0.37022]
[1727465144757,0.37021,2700.5,2700.3,0.37022]
[1727465145266,0.37023,2700.4,2700.2,0.37024]
[1727465145672,3.57801,2700.5,2700.3,0.37023]
[1727465145960,3.2602,2700.6,2700.4,0.37022]
[1727465146159,2.89,2700.6,2700.5,0.3702]
[1727465146361,1.90098,2700.7,2700.5,0.3702]
[1727465147762,1.5308,2700.7,2700.6,0.37019]
[1727465148261,5.234,2700.7,2700.6,0.37019]
[1727465148556,5.60418,2700.7,2700.5,0.3702]
[1727465148763,1.90098,2700.7,2700.5,0.3702]
[1727465149962,0.37019,2700.6,2700.1,4.13344]
[1727465150159,1.5308,2700.7,2700.5,0.37019]
[1727465150160,1.90098,2700.7,2700.5,0.37019]
[1727465150463,2.89,2700.9,2700.2,0.92562]
[1727465150660,6.0978,2701.1,2700.8,0.37015]
[1727465150963,6.0978,2701.1,2700.5,0.92552]
[1727465150964,0.37014,2701.0,2700.9,0.37015]
[1727465151164,6.46793,2701.1,2700.9,0.37015]
[1727465151362,6.0978,2701.1,2700.9,0.37015]
[1727465151562,0.37014,2701.0,2700.8,0.37015]
[1727465151959,0.37014,2701.0,2700.9,0.37015]
[1727465153065,0.37015,2700.9,2700.8,0.37015]
[1727465153359,6.0978,2701.1,2700.6,1.5066]
[1727465153360,6.46793,2701.1,2701.0,0.37014]
[1727465153567,0.37014,2701.0,2700.9,0.37014]
[1727465153759,6.0978,2701.1,2700.6,1.5066]
[1727465153760,6.46794,2701.1,2701.0,0.37014]
[1727465153959,2.89,2701.3,2700.7,4.13323]
[1727465154261,2.89,2701.3,2701.2,0.37011]
[1727465154767,3.26009,2701.3,2701.2,0.37011]
[1727465155066,3.26009,2701.3,2701.1,0.37011]
[1727465155666,3.26009,2701.3,2701.2,0.37011]
[1727465156166,3.26009,2701.3,2701.1,0.37011]
[1727465156367,2.89,2701.3,2701.2,0.37011]
[1727465156955,3.26009,2701.3,2701.2,0.37011]
[1727465157359,3.2078,2701.4,2701.3,0.37009]
[1727465158162,3.57788,2701.4,2701.3,0.37009]
[1727465158469,3.2078,2701.4,2701.3,0.37009]
[1727465159062,3.57788,2701.4,2701.3,0.37009]
[1727465160660,3.2078,2701.4,2701.3,0.37009]
[1727465161662,3.57788,2701.4,2701.3,0.37009]
[1727465163171,0.37008,2701.4,2701.3,0.37009]
[1727465164975,0.37009,2701.4,2701.3,0.37009]
[1727465172387,6.0978,2701.5,2700.8,3.2078]
[1727465172591,2.89,2700.9,2700.5,6.3867]
[1727465172886,3.2078,2701.2,2700.5,6.3867]
[1727465173085,3.2078,2701.2,2701.0,0.37013]
[1727465173086,0.37013,2701.1,2701.0,0.37013]
[1727465173479,3.2078,2701.2,2700.5,7.31221]
[1727465173480,0.37015,2700.9,2700.5,7.31221]
[1727465173787,4.13309,2701.2,2700.9,0.37015]
[1727465173788,6.43884,2701.0,2700.9,0.37015]
[1727465173989,2.0792,2701.5,2701.3,0.37009]
[1727465173990,3.2078,2701.5,2701.3,0.37009]
[1727465174285,0.3701,2701.3,2701.2,0.3701]
[1727465175202,4.48,2701.4,2701.3,0.37009]
[1727465176488,4.85009,2701.4,2701.3,0.37009]
[1727465178190,4.85009,2701.4,2701.2,0.3701]
[1727465178686,4.85009,2701.4,2701.0,3.1336]
[1727465178888,4.85009,2701.4,2699.8,5.18249809]
[1727465178889,2.89,2701.2,2700.6,1.87718088]
[1727465179189,0.37014,2701.1,2700.9,0.37014]
[1727465179379,0.37013,2701.1,2701.0,0.37013]
[1727465179576,0.37014,2701.0,2700.9,0.37014]
[1727465179978,2.89,2701.0,2700.6,4.8076]
[1727465180284,3.26018,2700.8,2700.7,0.37018]
[1727465181791,3.0805,2700.9,2700.8,0.37016]
[1727465181992,1.6066,2701.1,2700.6,9.46171088]
[1727465182183,1.6066,2701.1,2701.0,0.37014]
[1727465182387,1.5585,2701.4,2700.8,5.08490088]
[1727465182589,1.5585,2701.4,2701.3,0.37009]
[1727465183385,7.6005,2701.5,2701.4,0.37008]
[1727465183592,7.6005,2701.5,2701.3,0.37008]
[1727465183892,7.6005,2701.5,2701.4,0.37008]
[1727465184481,7.97058,2701.5,2701.4,0.37008]
[1727465184694,7.6005,2701.5,2701.4,0.37008]
[1727465185083,7.97057,2701.5,2701.4,0.37008]
[1727465186087,7.6005,2701.5,2701.3,0.37009]
[1727465186292,7.97057,2701.5,2701.4,0.37008]
[1727465186888,1.6636,2701.7,2701.6,0.37005]
[1727465187086,0.37006,2701.6,2701.5,0.37006]
[1727465187902,9.2891,2701.8,2701.3,0.95171088]
[1727465188191,1.93920931,2701.7,2701.6,0.37004]
[1727465188601,2.30924931,2701.7,2701.6,0.37004]
[1727465189391,0.37004,2701.7,2701.6,0.37004]
[1727465189597,2.31015999,2701.7,2701.6,0.37004]
[1727465190495,0.37005,2701.6,2701.5,2.02656]
[1727465190797,0.37005,2701.6,2701.5,0.37006]
[1727465191889,2.31016999,2701.7,2701.6,0.37005]
[1727465192093,1.94011999,2701.7,2701.4,1.5858]
[1727465192400,0.37007,2701.5,2701.4,0.37007]
[1727465194796,5.20017999,2701.6,2701.5,0.37007]
[1727465195297,3.26006,2701.6,2701.5,0.37007]
[1727465197297,2.89,2701.6,2701.5,0.37007]
[1727465197709,0.37005,2701.7,2701.6,0.37004]
[1727465198997,0.37006,2701.6,2701.5,0.37006]
[1727465202201,2.31012591,2701.6,2701.5,0.37006]
[1727465202393,1.94006591,2701.6,2701.3,1.5614]
[1727465202701,0.37006,2701.6,2701.5,0.37007]
[1727465203295,2.76416949,2701.7,2701.6,0.37005]
[1727465204697,2.39411949,2701.7,2701.6,0.37005]
[1727465204901,6.0813,2701.8,2701.7,0.37004]
[1727465204902,6.87301949,2701.8,2701.7,0.37004]
[1727465205214,3.52879787,2701.8,2701.7,1.29515]
[1727465205503,1.93989787,2702.2,2702.1,0.36999]
[1727465205698,0.36997,2702.2,2702.1,0.36999]
[1727465206101,2.30986787,2702.2,2702.1,0.36999]
[1727465207098,0.36997,2702.2,2702.1,0.36999]
[1727465208297,2.30986787,2702.2,2702.1,0.36999]
[1727465208998,1.93989787,2702.2,2702.1,0.36999]
[1727465209200,2.30985787,2702.3,2702.2,0.36997]
[1727465209409,2.89,2702.4,2702.3,0.36996]
[1727465209410,5.19984787,2702.4,2702.3,0.36996]
[1727465209708,5.19984787,2702.4,2701.9,2.53613]
[1727465209709,0.36998,2702.2,2702.1,0.36999]
[1727465209908,1.93699367,2702.4,2702.3,0.36996]
[1727465210210,1.93699367,2702.4,2702.2,0.36996]
[1727465210211,0.36995,2702.4,2702.2,0.36996]
[1727465211098,0.36997,2702.2,2702.1,0.36998]
[1727465211408,3.25995,2702.4,2702.2,0.36997]
[1727465211602,2.89,2702.4,2702.2,0.36997]
[1727465212010,2.89,2702.4,2701.8,2.53361088]
[1727465212310,0.36999,2702.1,2702.0,0.37]
[1727465213198,1.89019,2702.1,2702.0,0.37]
[1727465214005,1.5202,2702.1,2702.0,4.0708]
[1727465215302,1.5202,2702.1,2702.0,0.37]
[1727465215506,1.5202,2702.1,2702.0,4.0708]
[1727465219108,1.5202,2702.1,2702.0,0.37]
[1727465220611,1.5202,2702.1,2701.8,1.5819]
[1727465221007,4.5378,2702.0,2701.8,1.95192]
[1727465221213,0.37001,2701.9,2701.8,0.37002]
[1727465221409,6.1582,2702.0,2701.6,1.6139]
[1727465221710,1.6204,2702.0,2701.9,0.37001]
[1727465221916,1.99041,2702.0,2701.9,0.37001]
[1727465222307,4.88041,2702.0,2701.6,1.6139]
[1727465222511,4.88041,2702.0,2701.9,0.37001]
[1727465222904,4.88041,2702.0,2701.8,0.37002]
[1727465223107,4.5104,2702.0,2701.8,0.37002]
[1727465223314,4.88041,2702.0,2701.8,0.37002]
[1727465223508,4.88041,2702.0,2701.9,0.37001]
[1727465223714,4.5104,2702.0,2701.9,0.37001]
[1727465224507,1.6561,2702.2,2701.9,0.92502]
[1727465224812,1.6561,2702.2,2702.1,0.36999]
[1727465231216,4.81886,2702.3,2702.2,0.36997]
[1727465233412,4.4489,2702.3,2702.2,0.36997]
[1727465233611,0.36997,2702.2,2702.1,0.36997]
[1727465233813,4.81887,2702.3,2702.2,0.36997]
[1727465234418,0.36998,2702.2,2702.1,0.36998]
[1727465234825,0.36998,2702.2,2701.5,0.95171088]
[1727465234826,0.925,2702.1,2701.5,0.95171088]
[1727465235014,2.89,2701.6,2701.5,0.37006]
[1727465235218,3.26005,2701.6,2701.5,0.37006]
[1727465235419,4.79595,2701.6,2701.4,0.37007]
[1727465235622,3.1031,2701.5,2701.4,0.37007]
[1727465237723,1.5359,2701.6,2701.5,0.37007]
[1727465241325,3.0436,2701.9,2701.5,3.7016]
[1727465241526,1.6001,2702.0,2701.6,1.5513]
[1727465241731,1.6001,2702.0,2701.9,0.37001]
[1727465242224,1.6001,2702.0,2701.8,0.37002]
[1727465242622,0.37003,2701.8,2701.7,1.6457]
[1727465242822,0.37004,2701.7,2701.6,0.95171088]
[1727465243020,3.56474,2701.7,2701.5,1.32177088]
[1727465243228,1.6239,2701.6,2701.5,0.37006]
[1727465243619,1.6239,2701.6,2701.5,1.32177088]
[1727465243828,1.6239,2701.6,2701.5,0.37006]
[1727465244129,0.37007,2701.5,2701.3,1.32180088]
[1727465244335,0.37007,2701.5,2701.3,0.37009]
[1727465244527,4.5139,2701.6,2701.2,0.95171088]
[1727465244528,4.88396,2701.6,2701.4,0.37008]
[1727465245031,4.5139,2701.6,2701.3,0.95171088]
[1727465245334,4.5139,2701.6,2701.5,0.37007]
[1727465245524,1.6239,2701.6,2701.5,0.37007]
[1727465245829,0.36998,2702.2,2702.0,0.36999]
[1727465246127,2.05048,2702.2,2702.0,0.36999]
[1727465246327,2.05048,2702.2,2701.7,1.8875408]
[1727465246328,1.6805,2702.2,2702.1,0.36999]
[1727465247036,2.05048,2702.2,2702.0,0.36999]
[1727465247220,0.36999,2702.1,2702.0,0.36999]
[1727465247421,6.87747367,2702.2,2702.0,0.36999]
[1727465248031,0.36999,2702.1,2701.9,0.37001]
[1727465248222,6.50749367,2702.2,2701.8,1.5224]
[1727465248533,0.37,2702.0,2701.8,0.37002]
[1727465248736,1.6474,2701.9,2701.8,0.37002]
[1727465249427,0.36999,2702.1,2702.0,0.37]
[1727465249627,0.36999,2702.1,2701.9,0.37]
[1727465249939,8.15489367,2702.2,2702.1,0.36999]
[1727465252023,8.52487367,2702.2,2702.0,0.36999]
[1727465252224,8.15489367,2702.2,2702.1,0.36999]
[1727465253438,8.52486367,2702.2,2702.0,0.36999]
[1727465253629,8.15489367,2702.2,2702.1,0.36999]
[1727465254136,8.15489367,2702.2,2701.9,1.6147]
[1727465254333,8.52486367,2702.2,2702.0,0.36999]
[1727465255442,0.36999,2702.1,2701.9,1.9847]
[1727465255737,6.58788,2702.2,2702.0,0.37]
[1727465255931,6.58788,2702.2,2701.9,1.9847]
[1727465255932,0.36999,2702.1,2701.9,1.9847]
[1727465256139,0.37,2702.0,2701.8,0.37002]
[1727465256336,1.5415,2701.9,2701.8,0.37002]
[1727465257749,1.91151,2701.9,2701.7,1.3324908]
[1727465257942,1.5415,2701.9,2701.8,0.37003]
[1727465258847,3.57779,2702.1,2701.9,0.37]
[1727465260135,0.92504,2701.9,2701.6,0.9624508]
[1727465260345,6.46784,2701.7,2701.5,1.3325108]
[1727465260546,1.5391,2701.6,2701.5,0.37006]
[1727465260846,1.5391,2701.6,2701.3,1.3325408]
[1727465261042,1.90916,2701.6,2701.3,1.3325408]
[1727465261846,1.90916,2701.6,2701.4,0.37008]
[1727465262043,2.89,2701.5,2701.2,0.9624508]
[1727465262241,3.26011,2701.3,2701.1,0.9624508]
[1727465262640,3.26011,2701.3,2700.9,1.5355]
[1727465262842,3.26011,2701.3,2701.0,0.37012]
[1727465263144,2.89,2701.3,2700.9,1.5355]
[1727465263346,4.7758,2701.3,2701.0,0.37013]
[1727465264438,4.7758,2701.3,2701.1,0.37012]
[1727465264636,4.7758,2701.3,2701.0,0.37013]
[1727465264838,4.7758,2701.3,2701.1,0.37012]
[1727465265043,4.7758,2701.3,2701.0,0.37013]
[1727465265451,4.7758,2701.3,2700.7,3.4233908]
[1727465265654,4.4057,2701.3,2701.1,0.37012]
[1727465268052,4.4057,2701.3,2701.1,0.37011]
[1727465268253,1.6576,2701.2,2701.1,0.37011]
[1727465269755,1.6576,2701.2,2700.8,0.92541]
[1727465269756,3.2078,2701.4,2701.2,0.3701]
[1727465269965,4.8654,2701.4,2701.2,0.3701]
[1727465270153,4.8654,2701.4,2701.3,1.5516]
[1727465271958,5.23548,2701.4,2701.3,1.5516]
[1727465273756,5.23548,2701.4,2701.2,0.3701]
[1727465283259,0.37009,2701.3,2701.1,0.37012]
[1727465283561,5.23549,2701.4,2701.2,0.37011]
[1727465284767,0.37004,2701.8,2701.3,4.62684]
[1727465284961,0.37004,2701.8,2701.4,1.6053]
[1727465284962,1.6012,2701.8,2701.4,1.6053]
[1727465285156,1.6012,2701.8,2701.6,0.37005]
[1727465285157,1.97123,2701.8,2701.6,0.37005]
[1727465285568,1.6012,2701.8,2701.4,1.6053]
[1727465285772,0.37006,2701.6,2701.4,1.97538]
[1727465286071,0.37006,2701.6,2701.4,1.97537]
[1727465286562,0.37006,2701.6,2701.5,0.37007]
[1727465286968,6.46785,2701.7,2701.5,0.37007]
[1727465289866,6.0978,2701.7,2701.4,1.6053]
[1727465290069,3.2078,2701.7,2701.6,0.37005]
[1727465290275,3.2078,2702.0,2701.9,0.37001]
[1727465290476,1.5277,2702.2,2702.1,0.36999]
[1727465290676,1.5277,2702.2,2702.0,0.36999]
[1727465290978,1.89767,2702.2,2702.0,0.36999]
[1727465291182,1.5277,2702.2,2702.1,0.36999]
[1727465291767,1.89767,2702.2,2702.0,1.6118]
[1727465291973,1.5277,2702.2,2702.0,1.6118]
[1727465292169,1.5277,2702.2,2702.1,0.36999]